fUST/lending_fUST_20250825
["ID","MTS","AMOUNT","RATE_DAILY","PERIOD"]
[381152011,1756086554276,-309.9120638,0.00039755,34]
[381152012,1756086554296,-378.50481119,0.0004006,2]
[381152013,1756086554316,-167.344001,0.00040117,2]
[381152014,1756086554335,-259.10691283,0.00040159,5]
[381152015,1756086554354,-151.22412896,0.00040159,5]
[381152016,1756086554375,-157.0,0.000407,120]
[381152017,1756086554394,-151.0,0.00040953,2]
[381152018,1756086554414,-151.0,0.00040953,2]
[381152019,1756086554434,-955.24729855,0.00040953,2]
[381152020,1756086554454,-209.40437684,0.00040953,2]
[381152021,1756086554473,-221.49325359,0.00040953,2]
[381152022,1756086554493,-300.0,0.00040953,2]
[381152023,1756086554513,-300.0,0.00040953,2]
[381152024,1756086554533,-151.88308369,0.00040953,2]
[381152025,1756086554553,-500.0,0.00040953,2]
[381152026,1756086554573,-500.0,0.00040953,2]
[381152027,1756086554593,-500.0,0.00040953,2]
[381152028,1756086554612,-500.0,0.00040953,2]
[381152029,1756086554632,-500.0,0.00040953,2]
[381152030,1756086554653,-500.0,0.00040953,2]
[381152031,1756086554674,-250.0,0.00040953,2]
[381152032,1756086554694,-500.0,0.00040953,2]
[381152033,1756086554713,-250.0,0.00040953,2]
[381152034,1756086554734,-500.0,0.00040953,2]
[381152035,1756086554753,-250.0,0.00040953,2]
[381152036,1756086554773,-500.0,0.00040953,2]
[381152037,1756086554792,-250.0,0.00040953,2]
[381152038,1756086554812,-500.0,0.00040953,2]
[381152039,1756086554832,-250.0,0.00040953,2]
[381152040,1756086554853,-500.0,0.00040953,2]
[381152041,1756086554872,-250.0,0.00040953,2]
[381152042,1756086554890,-250.0,0.00040953,2]
[381152043,1756086554911,-250.0,0.00040953,2]
[381152044,1756086554931,-250.0,0.00040953,2]
[381152045,1756086554950,-250.0,0.00040953,2]
[381152046,1756086554969,-250.0,0.00040953,2]
[381152047,1756086554990,-152.8960789,0.00040953,2]
[381152048,1756086555010,-500.0,0.00041095,120]
[381152049,1756086555037,-309.9120638,0.00041482,37]
[381152050,1756086555059,-790.50430648,0.00042262,28]
[381152051,1756086555078,-196.77889817,0.00042322,2]
[381152052,1756086555098,-500.0,0.00042739,120]
[381152053,1756086555123,-309.9120638,0.00043208,41]
[381152054,1756086555146,-200.0,0.00043255,120]
[381152055,1756086555686,516.63271749,0.0003595,5]
[381152056,1756086555755,500.0,0.0003595,5]
[381152057,1756086555791,764.85274484,0.00036498,5]
[381152058,1756086557760,500.0,0.0003595,5]
[381152059,1756086557794,500.0,0.0003595,5]
[381152060,1756086557828,199.64761663,0.00036498,5]
[381152061,1756086557851,1204.83332482,0.00037594,5]
[381152062,1756086563137,-199.0,0.000309,120]
[381152063,1756086563157,-502.60329868,0.0003595,5]
[381152064,1756086563177,-1000.0,0.00036498,5]
[381152065,1756086563196,-1500.0,0.00037046,5]
[381152066,1756086563216,-795.16667518,0.00037594,5]
[381152067,1756086563238,-682.74676536,0.00038142,5]
[381152068,1756086564039,167.583109,0.00013699,2]
[381152069,1756086564107,-500.0,0.00044383,120]
[381152070,1756086564260,167.583109,0.00022505,2]
[381152071,1756086564563,167.583109,0.00031311,2]
[381152072,1756086564740,167.583109,0.00040117,2]
[381152073,1756086589121,267.8579728,0.00020763,2]
[381152074,1756086589168,234.37572637,0.0002249,2]
[381152078,1756086603617,511.69018592,0.00036498,5]
[381152079,1756086603648,503.87112901,0.0003595,5]
[381152080,1756086603673,500.0,0.0003595,5]
[381152081,1756086603721,545.28516591,0.0003595,5]
[381152082,1756086603816,502.53886774,0.0003595,5]
[381152083,1756086606636,151.5643363,0.00044382,120]
[381152084,1756086606666,300.0,0.00044382,120]
[381152085,1756086606716,151.0,0.00044382,120]
[381152086,1756086606905,151.0,0.00044382,120]
[381152087,1756086606980,151.0,0.00044382,120]
[381152088,1756086607240,213.42846437,0.00044382,120]
[381152092,1756086613656,169.06660267,0.000309,30]
[381152099,1756086632050,-426.18,0.000309,20]
[381152100,1756086632062,-11411.00897158,0.000309,20]
[381152130,1756086635820,199.0,0.00026749,20]
[381152160,1756086637910,-77069.21652376,0.000309,20]
[381152163,1756086637919,-311.52527739,0.000309,2]
[381152165,1756086637929,-380.78572021,0.000309,5]
[381152167,1756086637939,-86.57153563,0.00044382,120]
[381152169,1756086637948,-151.0,0.00044382,120]
[381152171,1756086637957,-300.0,0.00044382,120]
[381152173,1756086637966,-156.587,0.00044382,120]
[381152175,1756086637976,-151.0,0.00044382,120]
[381152177,1756086637985,-151.0,0.00044382,120]
[381152179,1756086637994,-300.0,0.00044382,120]
[381152181,1756086638004,-151.0,0.00044382,120]
[381152183,1756086638013,-162.380719,0.00044382,120]
[381152185,1756086638022,-151.0,0.00044382,120]
[381152187,1756086638031,-300.0,0.00044382,120]
[381152189,1756086638040,-151.0,0.00044382,120]
[381152191,1756086638049,-168.3888056,0.00044382,120]
[381152193,1756086638059,-151.0,0.00044382,120]
[381152195,1756086638069,-151.0,0.00044382,120]
[381152197,1756086638082,-300.0,0.00044382,120]
[381152199,1756086638091,-300.0,0.00044382,120]
[381152201,1756086638100,-151.0,0.00044382,120]
[381152203,1756086638111,-174.61919141,0.00044382,120]
[381152205,1756086638120,-300.0,0.00044382,120]
[381152207,1756086638130,-151.0,0.00044382,120]
[381152209,1756086638139,-151.0,0.00044382,120]
[381152211,1756086638149,-300.0,0.00044382,120]
[381152213,1756086638160,-304.41708436,0.00044382,120]
[381152215,1756086638170,-300.0,0.00044382,120]
[381152217,1756086638180,-181.08010149,0.00044382,120]
[381152219,1756086638191,-151.0,0.00044382,120]
[381152221,1756086638200,-151.0,0.00044382,120]
[381152223,1756086638209,-302.90274389,0.00044382,120]
[381152225,1756086638219,-151.0,0.00044382,120]
[381152227,1756086638227,-157.61400207,0.00044382,120]
[381152229,1756086638237,-300.0,0.00044382,120]
[381152231,1756086638246,-151.0,0.00044382,120]
[381152233,1756086638255,-151.0,0.00044382,120]
[381152235,1756086638263,-151.0,0.00044382,120]
[381152237,1756086638273,-500.0,0.00044382,120]
[381152239,1756086638282,-300.0,0.00044382,120]
[381152241,1756086638294,-187.78006525,0.00044382,120]
[381152243,1756086638304,-151.0,0.00044382,120]
[381152246,1756086638314,-500.0,0.00044382,120]
[381152248,1756086638324,-300.0,0.00044382,120]
[381152249,1756086638333,-151.0,0.00044382,120]
[381152251,1756086638342,-194.72792766,0.00044382,120]
[381152253,1756086638351,-151.0,0.00044382,120]
[381152255,1756086638361,-151.33110986,0.00044382,120]
[381152257,1756086638371,-500.0,0.00044382,120]
[381152260,1756086638380,-300.0,0.00044382,120]
[381152262,1756086638390,-201.93286098,0.00044382,120]
[381152264,1756086638399,-151.0,0.00044382,120]
[381152266,1756086638408,-300.0,0.00044382,120]
[381152267,1756086638418,-10962.24691224,0.00044382,120]
[381153028,1756086646020,-199.0,0.00044282,120]
[381153030,1756086646029,-1060.30593299,0.00044382,120]
[381153036,1756086646076,-403.9115668,0.00044382,120]
[381153038,1756086646087,-727.41835116,0.00044382,120]
[381153040,1756086646098,-2846.11723681,0.00044382,120]
[381153042,1756086646108,-500.0,0.00044382,120]
[381153044,1756086646118,-300.0,0.00044382,120]
[381153046,1756086646127,-7295.81156452,0.00044382,120]
[381153048,1756086646139,-9296.18843548,0.00044382,120]
[381153050,1756086646148,-500.0,0.00044382,120]
[381153052,1756086646159,-300.0,0.00044382,120]
[381153054,1756086646168,-151.0,0.00044382,120]
[381153056,1756086646178,-151.0,0.00044382,120]
[381153059,1756086646187,-500.0,0.00044382,120]
[381153061,1756086646196,-17205.904,0.00044382,120]
[381153063,1756086646205,-151.0,0.00044382,120]
[381153065,1756086646214,-500.0,0.00044382,120]
[381153066,1756086646223,-3953.01504932,0.00044382,120]
[381153322,1756086671300,162.15589331,0.00032876,120]
[381153323,1756086754872,264.99404632,0.0002249,2]
[381153324,1756086755117,264.99404632,0.00025943,4]
[381153334,1756086920815,241.77521106,0.0002249,2]
[381153335,1756086921232,241.77521106,0.00025943,4]
[381153336,1756087006656,355.0,0.00027,3]
[381153337,1756087043502,5000.0,0.00030901,30]
[381153338,1756087086911,258.6456932,0.0002249,2]
[381153339,1756087087015,258.6456932,0.00025943,4]
[381153340,1756087139271,160.0,0.00027,5]
[381153341,1756087159472,160.7461738,0.00027,10]
[381153344,1756087220961,151.0,0.00027,5]
[381153345,1756087241705,151.0,0.00027,5]
[381153346,1756087242123,1000.0,0.000241,2]
[381153347,1756087253772,317.50620692,0.0002249,2]
[381153348,1756087253841,317.50620692,0.00025943,4]
[381153349,1756087278938,1156.39,0.000241,2]
[381153350,1756087426475,363.65090436,0.0002249,2]
[381153351,1756087426695,363.65090436,0.00025943,4]
[381153354,1756087592817,315.16411712,0.0002249,2]
[381153355,1756087593123,315.16411712,0.00025943,4]
[381153356,1756087643110,-177.70664813,0.00024216,2]
[381153357,1756087680268,362.56,0.00018981,120]
[381153358,1756087680438,362.56,0.00018981,120]
[381153359,1756087693457,165.688231,0.00013699,2]
[381153360,1756087693662,165.688231,0.00021404,2]
[381153361,1756087746088,-137.45746899,0.00024216,2]
[381153362,1756087746109,-69.37918819,0.00024401,2]
[381153363,1756087746145,-4446.30140488,0.00024401,2]
[381153364,1756087746167,-992.0,0.00026697,2]
[381153365,1756087746186,-244.57542771,0.00026698,2]
[381153366,1756087746206,-300.0,0.00026798,2]
[381153367,1756087746225,-300.0,0.00026798,2]
[381153368,1756087746246,-640.0,0.00026798,2]
[381153369,1756087746266,-300.0,0.00026798,2]
[381153370,1756087746287,-189.77731141,0.0002757,92]
[381153371,1756087746311,-315.16411712,0.00027669,8]
[381153372,1756087746331,-6981.71474926,0.0002767,2]
[381153373,1756087746351,-244.57542771,0.0002895,2]
[381153374,1756087746371,-165.688231,0.0002911,2]
[381153375,1756087746396,-315.16411712,0.00029396,11]
[381153376,1756087746416,-174.168107,0.00030073,2]
[381153377,1756087746436,-295.407,0.00030901,30]
[381153378,1756087746460,-250.0,0.00030901,30]
[381153379,1756087746480,-250.0,0.00030901,30]
[381153380,1756087746502,-5000.0,0.00030901,3]
[381153381,1756087746526,-163.0,0.00031,120]
[381153382,1756087746552,-315.16411712,0.00031123,15]
[381153383,1756087746572,-244.57542771,0.00031202,2]
[381153384,1756087746591,-1000.0,0.00031277,30]
[381153385,1756087746612,-217.12848614,0.00032183,2]
[381153386,1756087746633,-666.0,0.00032409,2]
[381153387,1756087746657,-315.16411718,0.00032849,19]
[381153388,1756087746682,-315.16411712,0.00032849,19]
[381153389,1756087746702,-244.57542771,0.00033454,2]
[381153390,1756087746722,-163.2047551,0.00034127,2]
[381153391,1756087746747,-315.16411712,0.00034576,23]
[381153392,1756087746767,-267.118859,0.00034615,2]
[381153393,1756087746788,-217.37,0.00035806,120]
[381153394,1756087746808,-217.37,0.00035806,120]
[381153395,1756087746828,-217.37,0.00035806,120]
[381153396,1756087746847,-217.37,0.00035806,120]
[381153397,1756087746868,-217.37,0.00035806,120]
[381153398,1756087746887,-217.37,0.00035806,120]
[381153399,1756087746906,-217.37,0.00035806,120]
[381153400,1756087746926,-170.33,0.00035806,120]
[381153401,1756087746947,-7095.0334945,0.00035951,2]
[381153402,1756087746973,-315.16411712,0.00036302,26]
[381153403,1756087746994,-165.688231,0.00036815,2]
[381153404,1756087747015,-300.83231122,0.00038,120]
[381153405,1756087747038,-155.0,0.00038,30]
[381153406,1756087747066,-315.16411712,0.00038029,30]
[381153407,1756087747086,-155.0,0.0003863,90]
[381153408,1756087747107,-163.0,0.000395,120]
[381153409,1756087747134,-315.16411712,0.00039755,34]
[381153410,1756087747153,-1142.7485913,0.00039905,120]
[381153411,1756087747173,-155.0,0.00040274,90]
[381153412,1756087747194,-800.0,0.00040768,7]
[381153413,1756087747214,-204.93543,0.00041,120]
[381153414,1756087747235,-210.59268031,0.00041355,14]
[381153415,1756087747262,-315.16411712,0.00041482,37]
[381153416,1756087747283,-159.0,0.00042,30]
[381153417,1756087747303,-158.0,0.00042288,90]
[381153418,1756087747325,-326.0,0.00042322,14]
[381153419,1756087747346,-326.0,0.00042322,14]
[381153420,1756087747365,-326.0,0.00042322,14]
[381153421,1756087747384,-326.0,0.00042322,14]
[381153422,1756087747403,-326.0,0.00042322,14]
[381153423,1756087747424,-326.0,0.00042322,14]
[381153424,1756087747444,-326.0,0.00042322,14]
[381153425,1756087747472,-326.0,0.00042322,14]
[381153426,1756087747700,-326.0,0.00042322,14]
[381153427,1756087747729,-326.0,0.00042322,14]
[381153428,1756087747750,-326.0,0.00042322,14]
[381153429,1756087747773,-326.0,0.00042322,14]
[381153430,1756087747794,-326.0,0.00042322,14]
[381153431,1756087747815,-154.85382725,0.00042322,14]
[381153432,1756087747836,-326.0,0.00042322,14]
[381153433,1756087747856,-326.0,0.00042322,14]
[381153434,1756087747876,-326.0,0.00042322,14]
[381153435,1756087747899,-159.0,0.00043,33]
[381153436,1756087747924,-315.16411712,0.00043208,41]
[381153437,1756087747944,-174.168107,0.00043772,2]
[381153438,1756087747966,-500.0,0.00043999,120]
[381153439,1756087747988,-500.0,0.00043999,120]
[381153440,1756087748008,-551.59243709,0.00043999,2]
[381153441,1756087748033,-203.09098493,0.00043999,120]
[381153442,1756087748054,-500.0,0.00043999,7]
[381153443,1756087748074,-503.00687226,0.00043999,120]
[381153444,1756087748095,-566.67430939,0.00043999,31]
[381153445,1756087748116,-508.40730358,0.00043999,7]
[381153446,1756087748137,-367.58261616,0.00043999,120]
[381153447,1756087748159,-500.0,0.00043999,120]
[381153448,1756087748179,-500.0,0.00043999,2]
[381153449,1756087748202,-500.0,0.00043999,120]
[381153450,1756087748222,-500.0,0.00043999,2]
[381153451,1756087748243,-500.0,0.00043999,120]
[381153452,1756087748264,-500.0,0.00043999,2]
[381153453,1756087748286,-500.0,0.00043999,2]
[381153454,1756087748308,-500.0,0.00043999,120]
[381153455,1756087748329,-500.49735005,0.00043999,2]
[381153456,1756087748350,-500.0,0.00043999,120]
[381153457,1756087748373,-500.0,0.00043999,120]
[381153458,1756087748396,-609.07529931,0.00043999,120]
[381153459,1756087748417,-500.0,0.00043999,7]
[381153460,1756087748438,-11099.83,0.00044,120]
[381153461,1756087748462,-6317.75,0.00044,120]
[381153462,1756087748483,-160.0,0.00044089,2]
[381153463,1756087748505,-500.0,0.00044137,30]
[381153464,1756087748530,-167.17841954,0.00044282,2]
[381153465,1756087748549,-2493.26,0.00044362,10]
[381153466,1756087748570,-493.65285404,0.00044362,10]
[381153468,1756087759142,-199.0,0.00030801,30]
[381153469,1756087759166,-199.0,0.000309,120]
[381153470,1756087759189,-244.57542771,0.00035706,2]
[381153471,1756087765927,199.0,0.00035806,120]
[381153472,1756087771558,200.0,0.00034397,120]
[381153473,1756087772972,184.04995539,0.000199,2]
[381153474,1756087773000,56.08399096,0.000199,2]
[381153475,1756087773074,240.13394628,0.00021627,2]
[381153476,1756087773389,240.13394628,0.00026806,6]
[381153477,1756087774294,240.13394628,0.00023353,2]
[381153478,1756087777453,169.06660267,0.00027,3]
[381153509,1756087832338,-240.13394628,0.0002508,2]
[381153511,1756087832349,-240.13394628,0.00028533,10]
[381153513,1756087832358,-211.93365674,0.00030259,13]
[381153515,1756087832370,-28.20028954,0.00030259,13]
[381153517,1756087832379,-162.0,0.00031,120]
[381153519,1756087832389,-240.13394628,0.00033712,21]
[381153522,1756087832398,-240.13394628,0.00035439,24]
[381153524,1756087832407,-71.88507879,0.00035906,120]
[381153527,1756087832419,-98.48547691,0.00035906,120]
[381153529,1756087832428,-240.13394628,0.00037166,28]
[381153531,1756087832437,-10000.0,0.00038233,2]
[381153533,1756087832446,-240.13394628,0.00038892,32]
[381153535,1756087832455,-162.0,0.000395,120]
[381153537,1756087832465,-240.13394628,0.00040619,36]
[381153539,1756087832478,-2200.0,0.00042344,5]
[381153541,1756087832487,-240.13394628,0.00042345,39]
[381153543,1756087832497,-155.0,0.00043,90]
[381153545,1756087832506,-550.0,0.00043898,5]
[381153547,1756087832516,-550.0,0.00043898,5]
[381153549,1756087832525,-550.0,0.00043898,5]
[381153551,1756087832535,-302.0,0.00043898,5]
[381153553,1756087832544,-550.0,0.00043898,5]
[381153555,1756087832554,-7441.50416962,0.00043899,2]
[381153557,1756087832564,-390.67474428,0.00043999,7]
[381153559,1756087832573,-204.08950984,0.00043999,2]
[381153561,1756087832583,-479.96082911,0.00043999,120]
[381153563,1756087832592,-500.0,0.00043999,120]
[381153565,1756087832602,-500.0,0.00043999,120]
[381153567,1756087832611,-372.16061706,0.00043999,120]
[381153569,1756087832620,-321.30557838,0.00043999,120]
[381153571,1756087832629,-160.72698511,0.00043999,7]
[381153573,1756087832638,-500.0,0.00043999,120]
[381153575,1756087832647,-500.0,0.00043999,120]
[381153577,1756087832656,-199.58868889,0.00043999,7]
[381153579,1756087832666,-500.0,0.00043999,120]
[381153581,1756087832675,-500.0,0.00043999,120]
[381153583,1756087832684,-207.36791335,0.00043999,120]
[381153585,1756087832693,-240.13394628,0.00044072,43]
[381153587,1756087832702,-199.0,0.00044272,30]
[381153589,1756087832711,-179.06008569,0.00044272,2]
[381153591,1756087832720,-781.06617735,0.00044272,28]
[381153593,1756087832730,-179.06008567,0.00044277,2]
[381153595,1756087832739,-179.06008567,0.00044282,2]
[381153597,1756087832748,-159.90518955,0.00044361,10]
[381153599,1756087832757,-250.0,0.00044361,10]
[381153601,1756087832767,-250.0,0.00044361,10]
[381153603,1756087832777,-250.0,0.00044361,10]
[381153605,1756087832786,-250.0,0.00044361,10]
[381153607,1756087832795,-250.0,0.00044361,10]
[381153609,1756087832804,-250.0,0.00044361,10]
[381153610,1756087832814,-250.0,0.00044361,10]
[381153612,1756087832823,-250.0,0.00044361,10]
[381153614,1756087832832,-263.44403176,0.00044361,10]
[381153616,1756087832842,-2986.77,0.00044362,10]
[381153618,1756087832852,-1001.34269526,0.00044371,5]
[381153620,1756087832861,-232.4766599,0.00044372,3]
[381153622,1756087832870,-844.86965257,0.00044372,3]
[381153624,1756087832879,-18159.94667365,0.00044372,3]
[381153627,1756087832891,-33222.41929397,0.00044372,3]
[381153629,1756087832902,-12202.17981368,0.00044372,3]
[381153631,1756087832912,-10323.2955291,0.00044372,3]
[381153633,1756087832921,-462.15,0.00044372,30]
[381153635,1756087832930,-203.3983934,0.00044381,120]
[381153637,1756087832939,-500.0,0.00044381,120]
[381153639,1756087832947,-500.0,0.00044381,120]
[381153641,1756087832956,-500.0,0.00044381,120]
[381153643,1756087832966,-431.49840602,0.00044381,120]
[381153645,1756087832975,-500.0,0.00044381,120]
[381153647,1756087832984,-500.0,0.00044381,120]
[381153649,1756087832994,-500.0,0.00044381,120]
[381153651,1756087833003,-530.49930502,0.00044382,61]
[381153653,1756087833012,-3367.9355825,0.00044382,2]
[381153655,1756087833022,-4992.6019006,0.00044382,2]
[381153657,1756087833032,-151.0,0.00044382,120]
[381153659,1756087833043,-151.0,0.00044382,120]
[381153661,1756087833052,-151.0,0.00044382,120]
[381153663,1756087833062,-151.0,0.00044382,120]
[381153665,1756087833071,-151.0,0.00044382,120]
[381153667,1756087833080,-347.096817,0.00044382,120]
[381153669,1756087833089,-151.0,0.00044382,120]
[381153671,1756087833099,-347.096817,0.00044382,120]
[381153672,1756087833109,-151.0,0.00044382,120]
[381153674,1756087833119,-151.0,0.00044382,120]
[381153676,1756087833128,-347.096817,0.00044382,120]
[381153678,1756087833138,-347.096817,0.00044382,120]
[381153680,1756087833147,-347.096817,0.00044382,120]
[381153682,1756087833156,-347.096817,0.00044382,120]
[381153684,1756087833166,-151.0,0.00044382,120]
[381153686,1756087833176,-151.0,0.00044382,120]
[381153689,1756087833187,-347.096817,0.00044382,120]
[381153690,1756087833197,-347.096817,0.00044382,120]
[381153692,1756087833207,-151.607262,0.00044382,120]
[381153694,1756087833217,-365.25471,0.00044382,120]
[381153696,1756087833227,-365.25471,0.00044382,120]
[381153698,1756087833237,-365.25471,0.00044382,120]
[381153700,1756087833247,-365.25471,0.00044382,120]
[381153702,1756087833256,-365.25471,0.00044382,120]
[381153704,1756087833266,-365.25471,0.00044382,120]
[381153705,1756087833277,-365.25471,0.00044382,120]
[381153706,1756087833286,-365.25471,0.00044382,120]
[381153707,1756087833296,-453.518195,0.00044382,120]
[381153708,1756087833305,-453.518195,0.00044382,120]
[381153709,1756087833315,-151.0,0.00044382,120]
[381153710,1756087833325,-453.518195,0.00044382,120]
[381153711,1756087833335,-151.0,0.00044382,120]
[381153712,1756087833344,-453.518195,0.00044382,120]
[381153713,1756087833354,-453.518195,0.00044382,120]
[381153714,1756087833364,-453.518195,0.00044382,120]
[381153716,1756087833374,-761.717809,0.00044382,120]
[381153718,1756087833384,-453.518195,0.00044382,120]
[381153720,1756087833394,-761.717809,0.00044382,120]
[381153722,1756087833403,-453.518195,0.00044382,120]
[381153724,1756087833413,-151.0,0.00044382,120]
[381153726,1756087833422,-151.0,0.00044382,120]
[381153727,1756087833433,-761.717809,0.00044382,120]
[381153728,1756087833442,-761.717809,0.00044382,120]
[381153729,1756087833452,-151.0,0.00044382,120]
[381153730,1756087833461,-151.0,0.00044382,120]
[381153731,1756087833475,-761.717809,0.00044382,120]
[381153732,1756087833485,-151.0,0.00044382,120]
[381153733,1756087833494,-761.717809,0.00044382,120]
[381153734,1756087833504,-151.0,0.00044382,120]
[381153735,1756087833514,-211.232916,0.00044382,120]
[381153736,1756087833525,-232.17973,0.00044382,120]
[381153737,1756087833534,-224.686073,0.00044382,120]
[381153738,1756087833544,-224.686073,0.00044382,120]
[381153739,1756087833555,-761.717809,0.00044382,120]
[381153740,1756087833566,-761.717809,0.00044382,120]
[381153741,1756087833576,-224.686073,0.00044382,120]
[381153742,1756087833585,-224.686073,0.00044382,120]
[381153743,1756087833594,-224.686073,0.00044382,120]
[381153744,1756087833604,-224.686073,0.00044382,120]
[381153745,1756087833614,-224.686073,0.00044382,120]
[381153746,1756087833624,-224.686073,0.00044382,120]
[381153747,1756087833634,-151.0,0.00044382,120]
[381153748,1756087833644,-151.0,0.00044382,120]
[381153749,1756087833655,-189.689455,0.00044382,120]
[381153750,1756087833664,-154.687707,0.00044382,120]
[381153751,1756087833675,-189.689455,0.00044382,120]
[381153752,1756087833684,-151.0,0.00044382,120]
[381153753,1756087833694,-151.0,0.00044382,120]
[381153754,1756087833704,-189.689455,0.00044382,120]
[381153755,1756087833714,-189.689455,0.00044382,120]
[381153756,1756087833724,-155.223183,0.00044382,120]
[381153757,1756087833947,-189.689455,0.00044382,120]
[381153758,1756087833959,-189.689455,0.00044382,120]
[381153759,1756087833970,-189.689455,0.00044382,120]
[381153760,1756087833980,-189.689455,0.00044382,120]
[381153761,1756087833990,-254.747969,0.00044382,120]
[381153762,1756087834001,-254.747969,0.00044382,120]
[381153763,1756087834012,-151.821906,0.00044382,120]
[381153764,1756087834022,-254.747969,0.00044382,120]
[381153765,1756087834033,-254.747969,0.00044382,120]
[381153766,1756087834043,-254.747969,0.00044382,120]
[381153767,1756087834053,-254.747969,0.00044382,120]
[381153768,1756087834063,-254.747969,0.00044382,120]
[381153769,1756087834072,-254.747969,0.00044382,120]
[381153770,1756087834082,-403.650709,0.00044382,30]
[381153771,1756087834092,-403.650709,0.00044382,30]
[381153772,1756087834103,-151.0,0.00044382,120]
[381153773,1756087834112,-151.0,0.00044382,120]
[381153774,1756087834122,-403.650709,0.00044382,30]
[381153775,1756087834133,-403.650709,0.00044382,30]
[381153776,1756087834142,-403.650709,0.00044382,30]
[381153777,1756087834153,-151.0,0.00044382,120]
[381153778,1756087834163,-403.650709,0.00044382,30]
[381153779,1756087834173,-272.521676,0.00044382,120]
[381153780,1756087834183,-403.650709,0.00044382,30]
[381153781,1756087834194,-403.650709,0.00044382,30]
[381153782,1756087834204,-151.0,0.00044382,120]
[381153783,1756087834215,-151.0,0.00044382,120]
[381153784,1756087834226,-151.0,0.00044382,120]
[381153785,1756087834235,-197.749611,0.00044382,120]
[381153786,1756087834245,-151.0,0.00044382,120]
[381153787,1756087834254,-151.0,0.00044382,120]
[381153788,1756087834264,-151.0,0.00044382,120]
[381153789,1756087834273,-151.0,0.00044382,120]
[381153790,1756087834283,-172.924104,0.00044382,15]
[381153791,1756087834292,-172.924104,0.00044382,15]
[381153792,1756087834302,-172.924104,0.00044382,15]
[381153793,1756087834312,-172.924104,0.00044382,15]
[381153794,1756087834321,-151.0,0.00044382,120]
[381153795,1756087834331,-172.924104,0.00044382,15]
[381153796,1756087834340,-151.0,0.00044382,120]
[381153797,1756087834351,-172.924104,0.00044382,15]
[381153798,1756087834360,-151.0,0.00044382,120]
[381153799,1756087834370,-172.924104,0.00044382,15]
[381153800,1756087834380,-151.0,0.00044382,120]
[381153801,1756087834389,-172.924104,0.00044382,15]
[381153802,1756087834399,-151.0,0.00044382,120]
[381153803,1756087834408,-151.0,0.00044382,120]
[381153804,1756087834419,-151.0,0.00044382,120]
[381153805,1756087834428,-154.285948,0.00044382,120]
[381153806,1756087834438,-151.0,0.00044382,120]
[381153807,1756087834447,-151.0,0.00044382,120]
[381153808,1756087834456,-160.0,0.00044382,2]
[381153809,1756087834466,-278.30221,0.00044382,120]
[381153810,1756087834478,-278.30221,0.00044382,120]
[381153811,1756087834488,-731.986235,0.00044382,120]
[381153812,1756087834497,-731.986235,0.00044382,120]
[381153813,1756087834506,-278.30221,0.00044382,120]
[381153814,1756087834518,-278.30221,0.00044382,120]
[381153815,1756087834527,-731.986235,0.00044382,120]
[381153816,1756087834536,-731.986235,0.00044382,120]
[381153817,1756087834548,-7469.25,0.000444,14]
[381153818,1756087834557,-165.688231,0.00044521,2]